bitfinex-derivatives/quotes_SOLF0:USTF0_20250829
["timestamp","ask_amount","ask_price","bid_price","bid_amount"]
[1756504984587,0.03458325,203.43,203.38,4.03425972]
[1756504985289,0.03458325,203.43,203.39,7.55]
[1756504985487,0.03458325,203.43,203.38,4.03425972]
[1756504985886,0.03458325,203.43,203.39,7.55]
[1756504986487,0.03458325,203.43,203.38,7.55]
[1756504986895,0.03458325,203.43,203.37,8.45885972]
[1756504987593,0.03458325,203.43,203.38,7.55]
[1756504987788,0.03458325,203.43,203.37,8.45885972]
[1756504987985,0.03458325,203.43,203.38,7.55]
[1756504989498,0.03458325,203.43,203.38,4.03425972]
[1756504989697,0.03458325,203.43,203.39,7.55]
[1756504990599,0.03458325,203.43,203.38,4.03425972]
[1756504990795,0.03458325,203.43,203.39,7.55]
[1756504990995,0.03458325,203.43,203.38,4.03425972]
[1756504991595,0.03458325,203.43,203.39,7.55]
[1756504991991,0.03458325,203.43,203.38,4.03425972]
[1756504992600,0.03458325,203.43,203.39,7.55]
[1756504992898,0.03458325,203.43,203.38,4.03425972]
[1756504993393,0.03458325,203.43,203.39,7.55]
[1756504993598,0.03458325,203.43,203.38,4.03425972]
[1756504993802,0.03458325,203.43,203.39,7.55]
[1756504994399,0.03458325,203.43,203.38,4.03425972]
[1756504995401,0.03458325,203.43,203.39,7.55]
[1756504995798,0.03458325,203.43,203.38,5.87166299]
[1756504996303,0.03458325,203.43,203.39,7.55]
[1756504996604,0.03458325,203.43,203.41,7.55]
[1756504997097,0.03458325,203.43,203.4,6.26150327]
[1756504997894,0.03458325,203.43,203.41,7.55]
[1756504998094,0.03458325,203.43,203.41,1.83740327]
[1756504998299,0.03458325,203.43,203.42,7.55]
[1756505013110,0.03458325,203.43,203.42,11.58425972]
[1756505022219,0.03458325,203.43,203.42,7.55]
[1756505033224,2.53227172,203.43,203.42,7.55]
[1756505033427,0.03458325,203.43,203.42,7.55]
[1756505042629,8.19,203.46,203.43,7.55]
[1756505042829,8.19,203.46,203.45,9.38740327]
[1756505043029,1.83740327,203.52,203.45,9.38740327]
[1756505043225,2.498191,203.51,203.5,7.55]
[1756505044131,2.498191,203.51,203.49,7.55]
[1756505044330,2.498191,203.5,203.49,7.55]
[1756505045028,1.83740327,203.53,203.5,7.55]
[1756505045233,2.50098059,203.52,203.51,7.55]
[1756505045527,8.43740327,203.53,203.5,4.04067994]
[1756505045528,6.6,203.53,203.5,4.04067994]
[1756505045734,6.6,203.53,203.51,7.55]
[1756505047234,6.6,203.53,203.5,4.04067994]
[1756505047432,6.6,203.53,203.51,7.5]
[1756505047732,6.6,203.53,203.5,4.04067994]
[1756505047928,6.6,203.53,203.51,7.5]
[1756505048127,6.6,203.53,203.5,4.04067994]
[1756505048324,6.6,203.53,203.49,4.04067994]
[1756505048830,6.6,203.53,203.5,7.5]
[1756505049231,6.6,203.53,203.49,4.04067994]
[1756505049426,6.6,203.53,203.5,7.5]
[1756505049622,6.6,203.53,203.49,4.04067994]
[1756505050435,6.6,203.53,203.5,7.5]
[1756505051027,6.6,203.53,203.5,4.04067994]
[1756505051232,6.6,203.53,203.51,7.5]
[1756505051535,6.6,203.53,203.5,7.5]
[1756505051831,6.6,203.53,203.49,4.04067994]
[1756505052433,6.6,203.53,203.5,7.5]
[1756505052825,6.6,203.53,203.49,4.04067994]
[1756505053036,6.6,203.53,203.5,7.5]
[1756505053225,6.6,203.53,203.49,4.04067994]
[1756505053428,6.6,203.53,203.48,1.87494699]
[1756505053429,6.6,203.53,203.48,5.91562693]
[1756505053624,6.6,203.53,203.49,7.5]
[1756505053835,6.6,203.53,203.48,5.91562693]
[1756505054230,6.6,203.53,203.49,7.5]
[1756505054930,1.83740327,203.52,203.48,0.03754372]
[1756505055124,7.54,203.49,203.48,0.03754372]
[1756505055532,10.53240757,203.49,203.48,0.03754372]
[1756505056928,10.53257107,203.49,203.48,0.03754372]
[1756505057941,10.53257107,203.49,203.39,183.80355035]
[1756505057942,2.99257107,203.49,203.39,183.80355035]
[1756505058237,1.83740327,203.41,203.36,7.5]
[1756505058536,9.37740327,203.39,203.36,7.5]
[1756505058736,7.54,203.38,203.35,4.04067994]
[1756505058931,7.54,203.38,203.35,11.54067994]
[1756505059132,1.83740327,203.39,203.35,11.54067994]
[1756505059328,7.54,203.38,203.32,11.54067994]
[1756505059736,7.54,203.38,203.33,7.5]
[1756505060141,7.54,203.38,203.33,4.04067994]
[1756505060438,7.54,203.38,203.32,4.04067994]
[1756505061540,7.54,203.38,203.33,7.5]
[1756505061737,9.37740327,203.39,203.33,7.5]
[1756505065242,1.83740327,203.37,203.31,1.83740327]
[1756505065444,1.83740327,203.37,203.32,7.5]
[1756505065640,1.83740327,203.37,203.31,1.83740327]
[1756505065841,1.83740327,203.37,203.32,7.5]
[1756505066139,1.83740327,203.37,203.31,1.83740327]
[1756505066636,1.83740327,203.37,203.3,4.04067994]
[1756505066637,7.54,203.36,203.32,7.5]
[1756505066943,9.37740327,203.35,203.32,7.5]
[1756505067142,7.54,203.34,203.32,7.5]
[1756505067941,9.37740327,203.35,203.29,7.5]
[1756505070642,1.83740327,203.34,203.27,5.87808321]
[1756505070847,1.83740327,203.34,203.28,7.5]
[1756505071148,1.83740327,203.34,203.28,11.9267]
[1756505073752,7.54,203.31,203.28,11.9267]
[1756505073955,9.37740327,203.3,203.28,7.5]
[1756505077249,1.83740327,203.3,203.28,7.5]
[1756505077453,1.83740327,203.3,203.26,4.427]
[1756505077654,1.83740327,203.3,203.27,7.59]
[1756505077855,0.03530525,203.31,203.27,7.59]
[1756505078054,7.93530525,203.31,203.27,7.59]
[1756505078348,0.03530525,203.31,203.24,4.4276]
[1756505078554,1.87270852,203.31,203.25,9.42740327]
[1756505079157,1.87270852,203.31,203.25,7.59]
[1756505079357,1.87270852,203.31,203.25,9.42740327]
[1756505080456,7.9,203.3,203.27,7.59]
[1756505080652,0.03530525,203.31,203.27,7.59]
[1756505081152,7.9,203.3,203.27,7.59]
[1756505083656,0.03530525,203.31,203.27,7.59]
[1756505083955,7.9,203.3,203.27,7.59]
[1756505084953,7.9,203.3,203.26,1.83740327]
[1756505085151,7.9,203.3,203.27,7.59]
[1756505085349,7.9,203.3,203.26,1.83740327]
[1756505085554,7.9,203.3,203.27,7.59]
[1756505085857,0.03530525,203.31,203.28,1.83740327]
[1756505086254,7.9,203.31,203.28,9.42740327]
[1756505086961,0.03239033,203.32,203.29,7.59]
[1756505087158,0.03239033,203.32,203.28,1.83740327]
[1756505087350,0.03239033,203.32,203.29,7.59]
[1756505087555,7.93239033,203.32,203.29,7.59]
[1756505092566,7.93239033,203.32,203.28,1.83740327]
[1756505093060,7.93239033,203.32,203.29,7.59]
[1756505093458,7.93239033,203.32,203.28,1.83740327]
[1756505094064,7.93239033,203.32,203.29,7.59]
[1756505094263,7.93239033,203.32,203.28,1.83740327]
[1756505094763,7.93239033,203.32,203.29,7.59]
[1756505097062,0.03239033,203.32,203.3,1.83740327]
[1756505097367,0.03239033,203.32,203.31,7.59]
[1756505097861,0.03239033,203.32,203.31,9.42740327]
[1756505101167,0.03239033,203.32,203.31,7.59]
[1756505101467,0.03239033,203.32,203.31,9.42740327]
[1756505105269,0.03239033,203.32,203.31,13.4463376]
[1756505107060,0.03239033,203.32,203.31,11.60893433]
[1756505107368,0.03239033,203.32,203.31,7.59]
[1756505108063,7.55,203.31,203.3,4.01893433]
[1756505108267,7.55,203.31,203.28,4.01893433]
[1756505108472,7.55,203.31,203.28,11.25893433]
[1756505108869,7.55,203.31,203.28,7.24]
[1756505110176,7.55,203.31,203.27,5.8563376]
[1756505110774,7.55,203.31,203.28,7.24]
[1756505111575,0.03239033,203.32,203.28,7.24]
[1756505111876,2.50808785,203.31,203.27,5.8563376]
[1756505112074,7.55,203.31,203.28,7.24]
[1756505112271,0.03239033,203.32,203.28,7.24]
[1756505112471,7.55,203.3,203.28,7.24]
[1756505113473,7.55,203.31,203.27,5.8563376]
[1756505113974,7.55,203.31,203.28,7.24]
[1756505114768,0.03239033,203.32,203.27,4.01893433]
[1756505114969,7.55,203.3,203.27,4.01893433]
[1756505115281,2.50853594,203.29,203.25,4.01893433]
[1756505115480,7.55,203.29,203.25,4.01893433]
[1756505115680,7.55,203.27,203.24,4.01893433]
[1756505115878,1.83740327,203.28,203.24,4.01893433]
[1756505116076,1.83740327,203.28,203.25,4.01893433]
[1756505116276,7.55,203.27,203.25,4.01893433]
[1756505116478,4.34579746,203.26,203.22,4.01893433]
[1756505116679,7.55,203.25,203.22,4.01893433]
[1756505117075,1.83740327,203.26,203.22,4.01893433]
[1756505117480,7.55,203.24,203.22,4.01893433]
[1756505117681,1.83740327,203.25,203.22,11.25893433]
[1756505117887,9.38740327,203.25,203.22,11.25893433]
[1756505118987,7.55,203.25,203.22,11.25893433]
[1756505120384,1.83740327,203.26,203.22,11.25893433]
[1756505120583,7.55,203.25,203.22,11.25893433]
[1756505123084,7.55,203.25,203.23,7.24]
[1756505123287,1.83740327,203.26,203.22,4.01893433]
[1756505123488,1.83740327,203.26,203.21,11.25893433]
[1756505124090,7.55,203.25,203.21,11.25893433]
[1756505124490,7.55,203.25,203.21,4.01893433]
[1756505124886,7.55,203.25,203.22,7.24]
[1756505126187,0.03720534,203.26,203.22,1.83740327]
[1756505126392,0.03720534,203.26,203.25,7.24]
[1756505132098,0.03720534,203.26,203.24,4.01893433]
[1756505132290,0.03720534,203.26,203.24,7.24]
[1756505133999,0.03720534,203.26,203.23,4.01893433]
[1756505134194,0.03720534,203.26,203.24,7.24]
[1756505134593,0.03720534,203.26,203.23,4.01893433]
[1756505135095,0.03720534,203.26,203.24,7.24]
[1756505135490,0.03720534,203.26,203.23,4.01893433]
[1756505135689,0.03720534,203.26,203.24,7.24]
[1756505135894,0.03720534,203.26,203.23,4.01893433]
[1756505137202,0.03720534,203.26,203.24,7.61]
[1756505137702,0.03720534,203.26,203.23,4.01893433]
[1756505138201,0.03720534,203.26,203.24,7.61]
[1756505138397,0.03720534,203.26,203.23,4.01893433]
[1756505138597,0.03720534,203.26,203.24,7.61]
[1756505138998,0.03720534,203.26,203.23,4.01893433]
[1756505139804,0.03720534,203.26,203.24,7.61]
[1756505140194,0.03720534,203.26,203.23,4.01893433]
[1756505140903,0.03720534,203.26,203.24,7.61]
[1756505141100,0.03720534,203.26,203.23,4.01893433]
[1756505142200,0.03720534,203.26,203.24,7.61]
[1756505143507,0.03720534,203.26,203.23,4.01893433]
[1756505144005,0.03720534,203.26,203.24,7.61]
[1756505145208,0.03720534,203.26,203.23,4.01893433]
[1756505145411,0.03720534,203.26,203.24,7.61]
[1756505145911,0.03720534,203.26,203.23,4.01893433]
[1756505146208,0.03720534,203.26,203.24,7.61]
[1756505146409,0.03720534,203.26,203.23,4.01893433]
[1756505147206,0.03720534,203.26,203.24,4.01893433]
[1756505147402,0.03720534,203.26,203.25,7.61]
[1756505151215,0.03720534,203.26,203.25,11.62893433]
[1756505157222,0.03720534,203.26,203.25,7.61]
[1756505161825,2.54678771,203.26,203.23,4.03835214]
[1756505162023,4.34991422,203.25,203.21,4.03835214]
[1756505162224,7.88,203.23,203.21,4.03835214]
[1756505164227,13.63,203.25,203.2,4.03835214]
[1756505164421,1.84033185,203.21,203.19,7.61]
[1756505164628,1.84033185,203.21,203.19,11.64835214]
[1756505166122,9.72033185,203.21,203.19,11.64835214]
[1756505166320,9.72033185,203.21,203.19,7.61]
[1756505167232,1.84033185,203.21,203.17,11.93835214]
[1756505167433,1.84033185,203.21,203.18,7.9]
[1756505167625,1.84033185,203.19,203.15,11.93835214]
[1756505167830,7.73,203.18,203.15,11.93835214]
[1756505168223,1.84033185,203.19,203.15,11.93835214]
[1756505168432,9.57033185,203.17,203.12,4.03835214]
[1756505168628,9.57033185,203.17,203.13,7.9]
[1756505168830,7.73,203.16,203.13,7.9]
[1756505171830,0.03170334,203.17,203.11,7.9]
[1756505172133,0.03170334,203.17,203.13,7.9]
[1756505172529,0.03170334,203.17,203.12,5.86840252]
[1756505172734,0.03170334,203.17,203.13,7.9]
[1756505174433,0.03170334,203.17,203.13,9.74033185]
[1756505176231,0.03170334,203.17,203.13,1.84033185]
[1756505176835,0.03170334,203.17,203.13,7.9]
[1756505177333,0.03170334,203.17,203.12,5.86840252]
[1756505177535,0.03170334,203.17,203.13,7.9]
[1756505177937,0.03170334,203.17,203.12,5.86840252]
[1756505178438,7.73,203.16,203.13,7.9]
[1756505178739,1.84033185,203.14,203.08,7.9]
[1756505178938,1.84033185,203.12,203.07,7.9]
[1756505179140,1.84033185,203.12,203.07,4.02807067]
[1756505179638,1.87412818,203.12,203.07,4.02807067]
[1756505179838,7.73,203.09,203.05,4.02807067]
[1756505180040,7.73,203.09,203.03,4.02807067]
[1756505180334,7.73,203.09,203.02,5.86840252]
[1756505180537,1.84033185,203.11,203.05,7.9]
[1756505181132,1.84033185,203.11,203.04,4.02807067]
[1756505181133,0.03249115,203.1,203.04,4.02807067]
[1756505181338,0.03249115,203.1,203.04,7.9]
[1756505183041,1.872823,203.1,203.05,7.9]
[1756505183236,1.872823,203.1,203.03,5.86840252]
[1756505183436,1.872823,203.1,203.04,7.9]
[1756505184742,7.73,203.09,203.03,4.02807067]
[1756505184945,1.84033185,203.08,203.02,7.9]
[1756505185737,1.84033185,203.08,203.02,9.74033185]
[1756505190740,1.84033185,203.08,203.02,7.9]
[1756505191848,9.57033185,203.08,203.02,7.9]
[1756505192848,1.84033185,203.09,203.02,9.74033185]
[1756505195052,0.03249115,203.1,203.05,7.9]
[1756505195352,0.03249115,203.1,203.06,7.9]
[1756505195552,1.84033185,203.11,203.06,7.9]
[1756505195850,0.03592253,203.1,203.01,7.9]
[1756505196047,0.03592253,203.1,203.04,1.84033185]
[1756505196446,0.03592253,203.1,203.05,7.9]
[1756505196647,0.03592253,203.1,203.05,7.81]
[1756505197150,0.03592253,203.1,203.04,1.84033185]
[1756505197548,0.03592253,203.1,203.05,7.81]
[1756505197749,1.84033185,203.09,203.04,1.84033185]
[1756505197957,1.84033185,203.09,203.05,7.81]
[1756505198647,1.84033185,203.09,203.04,1.84033185]
[1756505199050,1.84033185,203.09,203.05,7.81]
[1756505199352,1.84033185,203.09,203.04,1.84033185]
[1756505199749,1.84033185,203.09,203.05,7.81]
[1756505200152,1.84033185,203.09,203.04,1.84033185]
[1756505200653,1.84033185,203.09,203.05,7.81]
[1756505200852,1.84033185,203.09,203.04,1.84033185]
[1756505201748,1.84033185,203.09,203.05,7.81]
[1756505201951,1.84033185,203.09,203.04,1.84033185]
[1756505202248,1.84033185,203.07,203.01,7.81]
[1756505203651,0.03592253,203.1,203.0,7.81]
[1756505203856,0.03592253,203.1,203.05,1.84033185]
[1756505204058,1.84033185,203.12,203.06,7.81]
[1756505204254,1.84033185,203.09,203.03,4.02807067]
[1756505204454,7.40427547,203.1,203.02,11.83807067]
[1756505204660,1.84033185,203.09,203.02,7.81]
[1756505205354,0.0349708,203.08,203.02,7.81]
[1756505206057,0.0349708,203.08,203.02,9.65033185]
[1756505206654,1.84033185,203.07,203.02,7.81]
[1756505206857,1.84033185,203.07,203.01,7.81]
[1756505207950,1.84033185,203.05,203.01,7.81]
[1756505208159,9.21033185,203.05,203.01,7.81]
[1756505208358,9.21033185,203.05,202.99,1.84033185]
[1756505208359,1.84033185,203.05,202.99,1.84033185]
[1756505208652,1.84033185,203.03,202.97,1.84033185]
[1756505208859,9.21033185,203.01,202.95,4.02807067]
[1756505209250,7.49,203.0,202.94,4.02807067]
[1756505209448,7.52315846,203.0,202.94,11.83807067]
[1756505210357,7.52315846,203.0,202.94,7.81]
[1756505210551,7.52315846,203.0,202.95,7.81]
[1756505210752,7.52315846,203.0,202.96,7.81]
[1756505211061,7.52315846,203.0,202.95,4.02807067]
[1756505211255,7.52315846,203.0,202.96,7.81]
[1756505211460,7.52315846,203.0,202.94,4.02807067]
[1756505211856,7.52315846,203.0,202.93,6.91162299]
[1756505212056,7.52315846,203.0,202.94,7.81]
[1756505213155,7.52315846,203.0,202.95,7.81]
[1756505213356,7.52315846,203.0,202.95,2.88355232]
[1756505213661,7.52315846,203.0,202.96,4.02807067]
[1756505213861,7.52315846,203.0,202.97,7.81]
[1756505215350,7.52315846,203.0,202.96,4.02807067]
[1756505215859,7.52315846,203.0,202.97,7.81]
[1756505216052,7.52315846,203.0,202.96,4.02807067]
[1756505216456,7.52315846,203.0,202.97,7.81]
[1756505217156,7.52315846,203.0,202.96,4.02807067]
[1756505217357,7.52315846,203.0,202.97,7.81]
[1756505217759,7.52315846,203.0,202.96,4.02807067]
[1756505217957,7.52315846,203.0,202.97,7.81]
[1756505218360,7.52315846,203.0,202.96,4.02807067]
[1756505218557,7.52315846,203.0,202.97,7.81]
[1756505218954,7.52315846,203.0,202.97,11.83807067]
[1756505219158,7.52315846,203.0,202.97,4.02807067]
[1756505219558,7.52315846,203.0,202.97,4.04341113]
[1756505219758,7.52315846,203.0,202.98,7.81]
[1756505219959,7.52315846,203.0,202.97,4.04341113]
[1756505220163,7.52315846,203.0,202.98,7.81]
[1756505220356,7.52315846,203.0,202.99,7.81]
[1756505220558,7.52315846,203.0,202.99,2.88355232]
[1756505220758,7.37,203.09,203.0,7.81]
[1756505220956,7.37,203.09,203.03,7.81]
[1756505221360,7.37,203.23,203.04,7.81]
[1756505221564,7.37,203.15,203.05,4.04171655]
[1756505221755,7.37,203.13,203.04,11.85171655]
[1756505221959,2.88355232,203.16,203.04,11.85171655]
[1756505222163,2.49661603,203.15,203.04,11.85171655]
[1756505222366,7.37,203.13,203.05,4.04171655]
[1756505226676,7.37,203.13,203.06,4.04171655]
[1756505230171,7.37,203.13,203.06,11.81171655]
[1756505231668,2.88355232,203.16,203.06,11.81171655]
[1756505231969,2.49958232,203.15,203.06,11.81171655]
[1756505232175,7.29,203.13,203.06,11.81171655]
[1756505234977,2.88355232,203.16,203.06,11.81171655]
[1756505235179,2.499206,203.15,203.06,11.81171655]
[1756505235476,7.29,203.13,203.06,11.81171655]
[1756505236575,7.29,203.13,203.06,7.77]
[1756505241177,10.17355232,203.13,203.05,4.04171655]
[1756505241479,1.84388965,203.08,203.03,11.81171655]
[1756505241683,7.29,203.07,203.03,11.81171655]
[1756505242078,9.13388965,203.07,203.04,7.77]
[1756505242479,9.13388965,203.07,203.03,4.04171655]
[1756505242784,7.29,203.14,203.04,7.77]
[1756505242984,1.84388965,203.08,203.03,4.04171655]
[1756505243284,7.29,203.08,203.04,7.77]
[1756505243483,2.88101053,203.11,203.04,7.77]
[1756505243683,7.29,203.1,203.04,7.77]
[1756505243880,7.29,203.1,203.03,4.04171655]
[1756505246074,7.29,203.1,203.04,4.04171655]
[1756505246276,7.29,203.1,203.03,4.04171655]
[1756505247184,7.29,203.1,203.04,4.04171655]
[1756505247481,7.29,203.1,203.03,4.04171655]
[1756505248183,7.29,203.1,203.04,4.04171655]
[1756505248381,7.29,203.1,203.03,4.04171655]
[1756505248581,7.29,203.1,203.04,7.77]
[1756505249082,7.29,203.1,203.04,11.81171655]
[1756505249285,7.29,203.1,203.04,7.77]
[1756505250079,7.29,203.1,203.04,11.81171655]
[1756505250279,7.29,203.1,203.04,7.77]
[1756505251084,7.29,203.1,203.04,11.81171655]
[1756505251385,7.29,203.1,203.04,7.77]
[1756505252086,7.29,203.1,203.04,11.81171655]
[1756505252386,7.29,203.1,203.04,7.77]
[1756505253086,7.29,203.1,203.04,11.81171655]
[1756505257387,2.88101053,203.12,203.05,4.04171655]
[1756505257590,7.23,203.1,203.05,4.04171655]
[1756505258184,7.23,203.11,203.05,11.46171655]
[1756505258389,2.50185283,203.1,203.06,7.42]
[1756505258591,7.23,203.09,203.06,7.42]
[1756505260188,10.11101053,203.12,203.06,7.42]
[1756505260388,9.73414158,203.11,203.05,11.47688976]
[1756505260691,7.23,203.09,203.06,7.42]
[1756505261284,7.23,203.09,203.05,4.05688976]
[1756505261487,7.23,203.09,203.07,7.42]
[1756505261987,7.23,203.13,203.08,4.05688976]
[1756505262183,10.11101053,203.17,203.09,4.05688976]
[1756505262386,2.50530516,203.16,203.11,11.47688976]
[1756505262690,7.23,203.14,203.11,11.47688976]
[1756505262883,12.9,203.18,203.12,7.42]
[1756505263084,9.7352732,203.17,203.13,7.42]
[1756505263386,2.5052732,203.16,203.14,7.42]
[1756505263788,9.7352732,203.16,203.13,11.47688976]
[1756505264087,7.23,203.16,203.13,11.47688976]
[1756505267096,7.23,203.16,203.13,7.42]
[1756505267992,7.23,203.16,203.12,4.05688976]
[1756505268197,7.23,203.16,203.13,7.42]
[1756505271992,5.67,203.18,203.13,7.42]
[1756505272198,7.23,203.16,203.13,7.42]
[1756505274892,5.67,203.18,203.13,7.42]
[1756505275098,9.73079329,203.17,203.11,4.05688976]
[1756505275291,7.23,203.17,203.11,4.05688976]
[1756505277798,2.87873402,203.2,203.11,4.05688976]
[1756505278099,9.73006111,203.19,203.12,7.42]
[1756505278288,2.50006111,203.18,203.11,4.05688976]
[1756505278492,7.23,203.19,203.12,7.42]
[1756505278789,2.49985463,203.18,203.11,4.05688976]
[1756505278994,7.23,203.19,203.12,7.42]
[1756505279196,2.49985463,203.18,203.11,4.05688976]
[1756505279390,7.23,203.19,203.12,7.42]
[1756505279598,2.49966551,203.18,203.12,7.42]
[1756505279798,7.23,203.19,203.12,7.42]
[1756505279993,2.49966551,203.18,203.12,7.42]
[1756505280291,9.72955838,203.17,203.12,7.42]
[1756505280494,7.23,203.19,203.12,7.42]
[1756505280696,7.23,203.17,203.12,7.42]
[1756505280893,2.87873402,203.2,203.12,7.42]
[1756505280894,7.23,203.19,203.12,7.42]
[1756505281092,7.23,203.17,203.12,7.42]
[1756505281292,7.23,203.17,203.11,7.42]
[1756505283701,2.87873402,203.2,203.11,7.42]
[1756505283999,10.10873402,203.2,203.14,4.05221391]
[1756505284201,10.10873402,203.2,203.13,4.05221391]
[1756505284403,7.23,203.18,203.11,11.47221391]
[1756505284704,7.23,203.19,203.11,7.42]
[1756505284904,7.23,203.17,203.11,7.42]
[1756505285203,7.23,203.19,203.11,7.42]
[1756505285402,1.84241935,203.17,203.11,7.42]
[1756505285603,1.84241935,203.17,203.11,11.47221391]
[1756505285803,7.23,203.16,203.11,11.47221391]
[1756505286097,9.07241935,203.17,203.11,11.47221391]
[1756505286704,7.23,203.17,203.12,7.63]
[1756505286902,7.23,203.17,203.12,5.89463326]
[1756505287397,331.81672083,203.24,203.13,4.05221391]
[1756505287398,1.84241935,203.2,203.13,4.05221391]
[1756505287602,1.84241935,203.2,203.14,7.63]
[1756505288599,1.84241935,203.21,203.15,7.63]
[1756505289003,1.84241935,203.21,203.15,11.68221391]
[1756505289502,9.42241935,203.23,203.16,1.84241935]
[1756505289703,2.49771339,203.22,203.16,1.84241935]
[1756505289899,9.42241935,203.23,203.17,7.63]
[1756505290098,2.49771339,203.22,203.16,1.84241935]
[1756505290403,9.42241935,203.23,203.17,7.63]
[1756505290608,2.49744176,203.22,203.17,7.63]
[1756505290797,9.42241935,203.23,203.17,7.63]
[1756505290996,2.49744176,203.22,203.17,7.63]
[1756505291198,9.42241935,203.23,203.17,7.63]
[1756505291397,7.58,203.23,203.17,7.63]
[1756505298309,7.58,203.26,203.19,7.63]
[1756505302110,112.49642565,203.31,203.19,2.87732083]
[1756505302111,7.58,203.3,203.19,2.87732083]
[1756505302305,2.49611715,203.29,203.22,7.63]
[1756505302513,7.58,203.3,203.22,7.63]
[1756505303107,7.58,203.3,203.22,11.68059398]
[1756505303307,7.58,203.3,203.22,7.63]
[1756505303713,7.58,203.3,203.22,4.05059398]
[1756505303911,7.58,203.3,203.23,7.63]
[1756505304313,7.58,203.3,203.24,7.63]
[1756505307711,7.58,203.31,203.21,11.68059398]
[1756505308117,2.87732083,203.32,203.21,11.68059398]
[1756505308318,7.58,203.3,203.21,7.63]
[1756505308720,7.58,203.28,203.21,7.63]
[1756505310118,7.58,203.25,203.16,7.63]
[1756505310518,2.87732083,203.23,203.16,7.63]
[1756505310822,10.45732083,203.23,203.16,7.63]
[1756505311622,7.58,203.23,203.16,7.63]
[1756505311824,7.58,203.23,203.17,7.63]
[1756505313129,7.58,203.28,203.18,7.63]
[1756505313323,2.4942113,203.27,203.19,7.63]
[1756505313527,7.58,203.28,203.21,7.63]
[1756505314431,10.45732083,203.28,203.2,4.05059398]
[1756505314631,2.87732083,203.25,203.19,4.05059398]
[1756505314826,7.58,203.24,203.16,11.68059398]
[1756505315726,7.58,203.24,203.17,4.05059398]
[1756505317033,7.58,203.24,203.18,7.58]
[1756505319936,2.87732083,203.29,203.2,11.63059398]
[1756505320135,10.24304581,203.28,203.2,7.58]
[1756505320432,7.75,203.28,203.2,7.58]
[1756505323034,7.75,203.26,203.18,4.05059398]
[1756505323229,138.56566022,203.34,203.19,6.92791481]
[1756505323431,16.71736677,203.33,203.2,11.63059398]
[1756505323628,2.49436826,203.32,203.2,11.63059398]
[1756505323831,2.87732083,203.33,203.2,11.63059398]
[1756505323832,2.49436826,203.31,203.2,11.63059398]
[1756505324136,2.49436826,203.3,203.2,11.63059398]
[1756505324332,7.75,203.28,203.2,11.63059398]
[1756505325035,7.75,203.28,203.21,7.58]
[1756505325232,7.75,203.28,203.21,11.63059398]
[1756505330234,7.75,203.28,203.22,4.05059398]
[1756505332237,2.49865063,203.27,203.22,4.05059398]
[1756505332433,5.8,203.32,203.22,4.05059398]
[1756505332434,5.8,203.32,203.22,11.63059398]
[1756505332743,2.49865063,203.31,203.22,11.63059398]
[1756505333041,7.75,203.29,203.22,11.63059398]
[1756505333241,2.49865063,203.28,203.22,11.63059398]
[1756505333441,7.75,203.29,203.23,4.05059398]
[1756505333643,7.75,203.27,203.24,7.58]
[1756505335233,7.75,203.27,203.23,4.05059398]
[1756505335439,7.75,203.27,203.24,7.58]
[1756505340437,7.75,203.27,203.24,11.63059398]
[1756505340844,5.8,203.32,203.24,11.63059398]
[1756505341143,5.8,203.32,203.24,11.62881653]
[1756505341144,2.50093665,203.31,203.24,11.62881653]
[1756505341341,4.34112141,203.3,203.24,11.62881653]
[1756505341546,2.50093665,203.29,203.24,11.62881653]
[1756505341746,2.50093665,203.28,203.24,11.62881653]
[1756505342048,7.75,203.26,203.24,11.62881653]